fUSD/lending_fUSD_20240501
["ID","MTS","AMOUNT","RATE_DAILY","PERIOD"]
[325219566,1714594242977,-245.69209,0.00013,2]
[325219568,1714594242986,-245.69209,0.00013,2]
[325219570,1714594242998,-245.69209,0.00013,2]
[325219572,1714594243006,-151.0,0.00013,2]
[325219574,1714594243015,-151.0,0.00013,2]
[325219576,1714594243024,-151.0,0.00013,2]
[325219578,1714594243032,-151.0,0.00013,2]
[325219580,1714594243041,-151.0,0.00013,2]
[325219582,1714594243050,-170.258817,0.00013,2]
[325219584,1714594243059,-151.0,0.00013,2]
[325219586,1714594243068,-151.0,0.00013,2]
[325219588,1714594243078,-151.0,0.00013,2]
[325219590,1714594243087,-151.0,0.00013,2]
[325219592,1714594243095,-151.0,0.00013,2]
[325219594,1714594243105,-151.0,0.00013,2]
[325219596,1714594243114,-151.0,0.00013,2]
[325219598,1714594243124,-151.0,0.00013,2]
[325219600,1714594243134,-151.0,0.00013,2]
[325219602,1714594243143,-151.0,0.00013,2]
[325219604,1714594243152,-151.0,0.00013,2]
[325219606,1714594243161,-151.0,0.00013,2]
[325219608,1714594243170,-151.0,0.00013,2]
[325219610,1714594243179,-151.0,0.00013,2]
[325219612,1714594243188,-151.0,0.00013,2]
[325219614,1714594243197,-151.0,0.00013,2]
[325219616,1714594243206,-151.0,0.00013,2]
[325219618,1714594243216,-151.0,0.00013,2]
[325219620,1714594243226,-151.0,0.00013,2]
[325219622,1714594243235,-151.0,0.00013,2]
[325219624,1714594243248,-151.0,0.00013,2]
[325219626,1714594243257,-151.0,0.00013,2]
[325219628,1714594243266,-151.0,0.00013,2]
[325219630,1714594243276,-151.0,0.00013,2]
[325219632,1714594243285,-151.0,0.00013,2]
[325219634,1714594243294,-151.0,0.00013,2]
[325219636,1714594243302,-187.850017,0.00013,2]
[325219638,1714594243312,-187.850017,0.00013,2]
[325219639,1714594243322,-187.850017,0.00013,2]
[325219642,1714594243334,-187.850017,0.00013,2]
[325219644,1714594243343,-187.850017,0.00013,2]
[325219646,1714594243352,-187.850017,0.00013,2]
[325219649,1714594243362,-232.036387,0.00013,2]
[325219652,1714594243371,-232.036387,0.00013,2]
[325219655,1714594243381,-232.036387,0.00013,2]
[325219658,1714594243390,-174.431596,0.00013,2]
[325219659,1714594243400,-174.431596,0.00013,2]
[325219661,1714594243411,-174.431596,0.00013,2]
[325219663,1714594243420,-232.036387,0.00013,2]
[325219666,1714594243430,-232.036387,0.00013,2]
[325219667,1714594243439,-232.036387,0.00013,2]
[325219670,1714594243449,-174.431596,0.00013,2]
[325219671,1714594243458,-227.089993,0.00013,2]
[325219673,1714594243467,-174.431596,0.00013,2]
[325219675,1714594243477,-174.431596,0.00013,2]
[325219677,1714594243486,-151.0,0.00013,2]
[325219679,1714594243500,-151.189367,0.00013,2]
[325219681,1714594243509,-188.290649,0.00013,2]
[325219683,1714594243519,-188.290649,0.00013,2]
[325219685,1714594243529,-188.290649,0.00013,2]
[325219687,1714594243538,-391.529264,0.00013,2]
[325219689,1714594243550,-391.529264,0.00013,2]
[325219692,1714594243559,-391.529264,0.00013,2]
[325219693,1714594243570,-188.290649,0.00013,2]
[325219695,1714594243579,-188.290649,0.00013,2]
[325219697,1714594243588,-188.290649,0.00013,2]
[325219699,1714594243598,-391.529264,0.00013,2]
[325219701,1714594243606,-391.529264,0.00013,2]
[325219703,1714594243615,-391.529264,0.00013,2]
[325219705,1714594243625,-239.561662,0.00013,2]
[325219707,1714594243634,-239.561662,0.00013,2]
[325219710,1714594243643,-239.561662,0.00013,2]
[325219711,1714594243655,-239.561662,0.00013,2]
[325219714,1714594243664,-239.561662,0.00013,2]
[325219715,1714594243673,-239.561662,0.00013,2]
[325219717,1714594243683,-151.0,0.00013,2]
[325219719,1714594243692,-151.0,0.00013,2]
[325219721,1714594243701,-151.0,0.00013,2]
[325219723,1714594243710,-151.0,0.00013,2]
[325219725,1714594243720,-202.348431,0.00013,2]
[325219727,1714594243729,-151.0,0.00013,2]
[325219729,1714594243739,-151.0,0.00013,2]
[325219731,1714594243752,-151.0,0.00013,2]
[325219733,1714594243761,-151.0,0.00013,2]
[325219735,1714594243770,-151.0,0.00013,2]
[325219737,1714594243778,-151.0,0.00013,2]
[325219739,1714594243787,-151.0,0.00013,2]
[325219741,1714594243796,-151.0,0.00013,2]
[325219743,1714594243806,-360.307456,0.00013,2]
[325219745,1714594243815,-360.307456,0.00013,2]
[325219747,1714594243826,-360.307456,0.00013,2]
[325219749,1714594243836,-360.307456,0.00013,2]
[325219751,1714594243848,-360.307456,0.00013,2]
[325219754,1714594243857,-4840.64948,0.00013,2]
[325219755,1714594243867,-360.307456,0.00013,2]
[325219757,1714594243876,-4840.64948,0.00013,2]
[325219759,1714594243885,-151.0,0.00013,2]
[325219762,1714594243894,-4840.64948,0.00013,2]
[325219763,1714594243903,-151.0,0.00013,2]
[325219765,1714594243913,-151.0,0.00013,2]
[325219767,1714594243922,-4840.64948,0.00013,2]
[325219769,1714594243931,-4840.64948,0.00013,2]
[325219772,1714594243941,-4840.64948,0.00013,2]
[325219774,1714594243950,-262.893401,0.00013,2]
[325219776,1714594243959,-262.893401,0.00013,2]
[325219778,1714594243968,-151.0,0.00013,2]
[325219780,1714594243978,-262.893401,0.00013,2]
[325219782,1714594243987,-151.0,0.00013,2]
[325219783,1714594243999,-151.0,0.00013,2]
[325219786,1714594244009,-262.893401,0.00013,2]
[325219788,1714594244018,-262.893401,0.00013,2]
[325219790,1714594244027,-262.893401,0.00013,2]
[325219792,1714594244037,-165.237824,0.00013,2]
[325219794,1714594244046,-151.0,0.00013,2]
[325219795,1714594244055,-151.0,0.00013,2]
[325219797,1714594244065,-151.0,0.00013,2]
[325219799,1714594244075,-151.0,0.00013,2]
[325219802,1714594244084,-191.81259505,0.00013,2]
[325219804,1714594244093,-151.0,0.00013,2]
[325219805,1714594244103,-151.0,0.00013,2]
[325219808,1714594244113,-325.832513,0.00013,2]
[325219809,1714594244123,-151.0,0.00013,2]
[325219811,1714594244132,-325.832513,0.00013,2]
[325219814,1714594244141,-325.832513,0.00013,2]
[325219815,1714594244152,-325.832513,0.00013,2]
[325219817,1714594244161,-325.832513,0.00013,2]
[325219819,1714594244170,-151.0,0.00013,2]
[325219821,1714594244179,-151.0,0.00013,2]
[325219823,1714594244188,-325.832513,0.00013,2]
[325219825,1714594244197,-151.0,0.00013,2]
[325219827,1714594244206,-203.006649,0.00013,2]
[325219829,1714594244215,-203.006649,0.00013,2]
[325219831,1714594244225,-203.006649,0.00013,2]
[325219833,1714594244234,-151.0,0.00013,2]
[325219835,1714594244245,-203.006649,0.00013,2]
[325219837,1714594244254,-151.0,0.00013,2]
[325219839,1714594244264,-203.006649,0.00013,2]
[325219841,1714594244273,-151.0,0.00013,2]
[325219843,1714594244282,-203.006649,0.00013,2]
[325219845,1714594244291,-151.0,0.00013,2]
[325219847,1714594244301,-151.0,0.00013,2]
[325219849,1714594244311,-258.476931,0.00013,2]
[325219852,1714594244325,-1219.255129,0.00013,2]
[325219853,1714594244334,-1219.255129,0.00013,2]
[325219856,1714594244343,-1219.255129,0.00013,2]
[325219857,1714594244352,-1219.255129,0.00013,2]
[325219859,1714594244363,-1219.255129,0.00013,2]
[325219862,1714594244372,-1219.255129,0.00013,2]
[325219864,1714594244381,-200.0,0.00013,2]
[325219865,1714594244391,-9387.0,0.00013014,2]
[325219867,1714594244400,-5061.0,0.0001302,2]
[325219869,1714594244410,-5061.0,0.00013023,2]
[325219872,1714594244424,-491.07,0.00013041,2]
[325219874,1714594244433,-1113.13185757,0.00013057,2]
[325219876,1714594244442,-4661.0,0.00013077,2]
[325219878,1714594244451,-890.81571224,0.0001313,2]
[325219880,1714594244460,-200.0,0.0001313,2]
[325219882,1714594244470,-2000.0,0.0001313,2]
[325219884,1714594244479,-200.0,0.0001313,2]
[325219886,1714594244488,-2000.0,0.0001313,2]
[325219888,1714594244500,-200.0,0.0001313,2]
[325219890,1714594244511,-200.0,0.0001313,2]
[325219892,1714594244519,-200.0,0.00013261,2]
[325219894,1714594244528,-2000.0,0.00013261,2]
[325219896,1714594244538,-200.0,0.00013261,2]
[325219898,1714594244550,-2000.0,0.00013261,2]
[325219900,1714594244560,-200.0,0.00013261,2]
[325219902,1714594244569,-200.0,0.00013261,2]
[325219904,1714594244578,-2000.0,0.00013273,2]
[325219906,1714594244587,-3000.0,0.0001339,2]
[325219908,1714594244597,-200.0,0.00013394,2]
[325219910,1714594244607,-2000.0,0.00013394,2]
[325219912,1714594244616,-200.0,0.00013394,2]
[325219914,1714594244625,-2000.0,0.00013394,2]
[325219916,1714594244634,-200.0,0.00013394,2]
[325219917,1714594244646,-200.0,0.00013394,2]
[325219918,1714594244655,-1681.09,0.00013425,2]
[325219919,1714594244664,-200.0,0.00013528,2]
[325219920,1714594244673,-2000.0,0.00013528,2]
[325219922,1714594244682,-200.0,0.00013528,2]
[325219924,1714594244692,-2000.0,0.00013528,2]
[325219926,1714594244702,-200.0,0.00013528,2]
[325219928,1714594244711,-200.0,0.00013528,2]
[325219930,1714594244720,-2000.0,0.00013547,2]
[325219932,1714594244729,-200.0,0.00013699,2]
[325219934,1714594244738,-1000.0,0.00013699,2]
[325219936,1714594244751,-2751.0,0.00013699,2]
[325219938,1714594244760,-500.0,0.00013699,2]
[325219940,1714594244769,-508.93,0.00013787,2]
[325219942,1714594244778,-2000.0,0.00013821,2]
[325219944,1714594244787,-1000.0,0.000139,3]
[325219946,1714594244795,-1000.0,0.000139,3]
[325219948,1714594244804,-214.23880024,0.00014,2]
[325219950,1714594244813,-155.03364716,0.00014,2]
[325219952,1714594244823,-150.3,0.00014,2]
[325219954,1714594244833,-150.3,0.00014,2]
[325219956,1714594244842,-150.3,0.00014,2]
[325219958,1714594244852,-150.3,0.00014,2]
[325219960,1714594244861,-150.3,0.00014,2]
[325219962,1714594244870,-150.3,0.00014,2]
[325219964,1714594244879,-150.3,0.00014,2]
[325219966,1714594244889,-150.3,0.00014,2]
[325219968,1714594244898,-150.3,0.00014,2]
[325219970,1714594244907,-150.3,0.00014,2]
[325219972,1714594244917,-150.3,0.00014,2]
[325219974,1714594244926,-150.3,0.00014,2]
[325219976,1714594244935,-150.3,0.00014,2]
[325219978,1714594244945,-150.3,0.00014,2]
[325219980,1714594244954,-150.3,0.00014,2]
[325219982,1714594244963,-150.3,0.00014,2]
[325219984,1714594244972,-150.3,0.00014,2]
[325219986,1714594244981,-150.3,0.00014,2]
[325219988,1714594244991,-150.3,0.00014,2]
[325219990,1714594245003,-150.3,0.00014,2]
[325219992,1714594245013,-150.3,0.00014,2]
[325219994,1714594245022,-150.3,0.00014,2]
[325219996,1714594245031,-150.3,0.00014,2]
[325219998,1714594245040,-150.3,0.00014,2]
[325220000,1714594245049,-150.3,0.00014,2]
[325220002,1714594245059,-150.3,0.00014,2]
[325220004,1714594245069,-150.3,0.00014,2]
[325220007,1714594245078,-150.3,0.00014,2]
[325220009,1714594245088,-150.3,0.00014,2]
[325220010,1714594245097,-150.3,0.00014,2]
[325220013,1714594245107,-150.3,0.00014,2]
[325220014,1714594245116,-150.3,0.00014,2]
[325220016,1714594245125,-150.3,0.00014,2]
[325220019,1714594245134,-150.3,0.00014,2]
[325220020,1714594245143,-150.3,0.00014,2]
[325220023,1714594245153,-150.3,0.00014,2]
[325220024,1714594245162,-150.3,0.00014,2]
[325220026,1714594245171,-150.3,0.00014,2]
[325220028,1714594245180,-150.3,0.00014,2]
[325220031,1714594245190,-3000.0,0.0001402,2]
[325220033,1714594245199,-251.36,0.00014053,2]
[325220035,1714594245209,-150.3,0.0001408,2]
[325220037,1714594245218,-1859.0,0.0001409,2]
[325220039,1714594245227,-610.824,0.0001409,2]
[325220041,1714594245237,-258.0,0.0001409,2]
[325220043,1714594245246,-3133.0,0.0001409,2]
[325220044,1714594245255,-2448.0,0.0001409,2]
[325220047,1714594245264,-1476.0,0.0001409,2]
[325220049,1714594245274,-151.059,0.0001409,2]
[325220051,1714594245284,-421.0,0.0001409,2]
[325220053,1714594245295,-1643.0,0.0001409,2]
[325220055,1714594245305,-215.0,0.0001409,2]
[325220057,1714594245316,-150.0,0.0001409,2]
[325220059,1714594245326,-476.588,0.0001409,2]
[325220061,1714594245339,-1140.0,0.0001409,2]
[325220063,1714594245349,-2000.0,0.00014095,2]
[325220065,1714594245358,-1113.13185757,0.00014214,2]
[325220067,1714594245367,-5737.0,0.00014315,2]
[325220069,1714594245378,-5914.865,0.00014315,2]
[325220071,1714594245387,-37744.0,0.00014315,2]
[325220073,1714594245396,-2292.0,0.00014315,2]
[325220075,1714594245406,-1057.0,0.00014315,2]
[325220077,1714594245415,-2000.0,0.00014369,2]
[325220079,1714594245425,-913.5,0.00014389,3]
[325220081,1714594245434,-491.07,0.0001449,2]
[325220083,1714594245444,-1000.0,0.000145,3]
[325220085,1714594245453,-250.0,0.0001451,2]
[325220087,1714594245463,-251.508,0.0001451,2]
[325220089,1714594245471,-160.0,0.0001451,2]
[325220091,1714594245480,-210.0,0.0001451,2]
[325220093,1714594245490,-161.854,0.0001451,2]
[325220095,1714594245501,-194.053,0.0001451,2]
[325220097,1714594245511,-260.0,0.0001451,2]
[325220099,1714594245519,-257.562,0.0001451,2]
[325220101,1714594245528,-200.0,0.0001451,2]
[325220103,1714594245537,-200.0,0.0001451,2]
[325220105,1714594245548,-272.701,0.0001451,2]
[325220107,1714594245557,-275.0,0.0001451,2]
[325220109,1714594245566,-150.824,0.0001451,2]
[325220111,1714594245575,-234.895,0.0001451,2]
[325220113,1714594245584,-265.131,0.0001451,2]
[325220115,1714594245593,-281.639,0.0001451,2]
[325220118,1714594245603,-165.0,0.0001451,2]
[325220121,1714594245612,-211.941,0.0001451,2]
[325220123,1714594245621,-150.672,0.0001451,2]
[325220125,1714594245630,-150.0,0.0001451,2]
[325220127,1714594245639,-152.819,0.0001451,2]
[325220129,1714594245648,-1395.0,0.0001451,2]
[325220132,1714594245658,-970.839,0.0001451,2]
[325220135,1714594245667,-462.0,0.0001451,2]
[325220138,1714594245676,-2298.0,0.0001451,2]
[325220140,1714594245685,-1258.0,0.0001451,2]
[325220143,1714594245695,-1234.739,0.0001451,2]
[325220145,1714594245704,-664.277,0.0001451,2]
[325220147,1714594245713,-808.0,0.0001451,2]
[325220149,1714594245722,-440.341,0.0001451,2]
[325220151,1714594245731,-251.239288,0.00014521,2]
[325220153,1714594245741,-2000.0,0.00014643,2]
[325220155,1714594245751,-3000.0,0.0001465,2]
[325220157,1714594245761,-156.0,0.00014671,2]
[325220159,1714594245769,-10000.0,0.00014738,2]
[325220161,1714594245777,-1000.0,0.000149,3]
[325220163,1714594245787,-1000.0,0.000149,4]
[325220165,1714594245796,-617.71050029,0.00015,2]
[325220167,1714594245805,-302.24345875,0.00015,2]
[325220169,1714594245814,-4212.33887019,0.00015,2]
[325220171,1714594245823,-200.0,0.00015,2]
[325220173,1714594245832,-257.06252985,0.00015,2]
[325220175,1714594245841,-167.87727307,0.00015,2]
[325220177,1714594245850,-1464.0,0.00015,2]
[325220180,1714594245859,-8246.5138401,0.00015,2]
[325220183,1714594245868,-763.30285231,0.00015,2]
[325220185,1714594245877,-9983.0,0.00015,2]
[325220188,1714594245887,-150.0,0.00015,15]
[325220191,1714594245896,-300.0,0.00015068,2]
[325220194,1714594245906,-508.93,0.00015166,2]
[325220197,1714594245915,-3000.0,0.0001527,2]
[325220200,1714594245924,-75345.75228324,0.00015283,2]
[325220203,1714594245933,-151.0,0.00015283,2]
[325220206,1714594245943,-212.40721,0.00015283,2]
[325220209,1714594245951,-151.0,0.00015283,2]
[325220212,1714594245961,-151.0,0.00015283,2]
[325220216,1714594245970,-151.0,0.00015283,2]
[325220219,1714594245979,-151.0,0.00015283,2]
[325220222,1714594245988,-294.986165,0.00015283,2]
[325220225,1714594245997,-233.549695,0.00015283,2]
[325220228,1714594246006,-151.0,0.00015283,2]
[325220231,1714594246015,-151.0,0.00015283,2]
[325220233,1714594246024,-162.74296,0.00015283,2]
[325220236,1714594246034,-151.0,0.00015283,2]
[325220240,1714594246044,-151.0,0.00015283,2]
[325220243,1714594246054,-151.0,0.00015283,2]
[325220246,1714594246063,-151.0,0.00015283,2]
[325220249,1714594246072,-151.0,0.00015283,2]
[325220251,1714594246081,-187.850017,0.00015283,2]
[325220254,1714594246090,-187.850017,0.00015283,2]
[325220256,1714594246099,-232.036387,0.00015283,2]
[325220259,1714594246108,-174.431596,0.00015283,2]
[325220262,1714594246118,-232.036387,0.00015283,2]
[325220264,1714594246126,-174.431596,0.00015283,2]
[325220266,1714594246135,-188.290649,0.00015283,2]
[325220269,1714594246145,-391.529264,0.00015283,2]
[325220271,1714594246154,-188.290649,0.00015283,2]
[325220274,1714594246163,-391.529264,0.00015283,2]
[325220276,1714594246172,-239.561662,0.00015283,2]
[325220280,1714594246182,-239.561662,0.00015283,2]
[325220283,1714594246191,-151.0,0.00015283,2]
[325220286,1714594246200,-221.480855,0.00015283,2]
[325220287,1714594246209,-163.039351,0.00015283,2]
[325220291,1714594246218,-360.307456,0.00015283,2]
[325220293,1714594246227,-360.307456,0.00015283,2]
[325220296,1714594246237,-4840.64948,0.00015283,2]
[325220299,1714594246248,-151.0,0.00015283,2]
[325220300,1714594246257,-4840.64948,0.00015283,2]
[325220303,1714594246266,-262.893401,0.00015283,2]
[325220305,1714594246275,-151.0,0.00015283,2]
[325220308,1714594246284,-262.893401,0.00015283,2]
[325220312,1714594246294,-151.0,0.00015283,2]
[325220315,1714594246304,-151.0,0.00015283,2]
[325220318,1714594246314,-325.832513,0.00015283,2]
[325220320,1714594246327,-151.0,0.00015283,2]
[325220323,1714594246336,-325.832513,0.00015283,2]
[325220325,1714594246345,-203.006649,0.00015283,2]
[325220329,1714594246355,-151.0,0.00015283,2]
[325220331,1714594246367,-203.006649,0.00015283,2]
[325220334,1714594246376,-1219.255129,0.00015283,2]
[325220337,1714594246385,-1219.255129,0.00015283,2]
[325220339,1714594246394,-188.295465,0.0001531,2]
[325220341,1714594246405,-188.295465,0.0001531,2]
[325220345,1714594246416,-151.0,0.0001531,2]
[325220348,1714594246425,-151.0,0.0001531,2]
[325220351,1714594246434,-151.0,0.0001531,2]
[325220353,1714594246443,-151.0,0.0001531,2]
[325220355,1714594246453,-611.968982,0.0001531,2]
[325220358,1714594246462,-611.968982,0.0001531,2]
[325220361,1714594246471,-251.239288,0.00015342,2]
[325220364,1714594246480,-1113.13185757,0.00015371,2]
[325220366,1714594246489,-251.36,0.00015458,2]
[325220368,1714594246501,-167.17477728,0.000155,2]
[325220371,1714594246510,-913.5,0.00015807,3]
[325220372,1714594246519,-167.0,0.00015831,2]
[325220375,1714594246529,-167.0,0.00015831,2]
[325220406,1714594246734,-167.0,0.00015831,2]
[325220408,1714594246747,-3000.0,0.0001589,2]
[325220410,1714594246757,-1000.0,0.000159,3]
[325220412,1714594246766,-218.466058,0.000159,2]
[325220414,1714594246775,-218.466058,0.000159,2]
[325220416,1714594246784,-2100.0,0.00015917,2]
[325220418,1714594246794,-300.614,0.00015917,2]
[325220420,1714594246804,-491.07,0.00015939,2]
[325220422,1714594246813,-2351.77,0.0001611,15]
[325220424,1714594246822,-251.239288,0.00016164,2]
[325220426,1714594246832,-500.0,0.00016209,2]
[325220428,1714594246841,-160.0,0.00016209,2]
[325220430,1714594246850,-500.0,0.0001643,2]
[325220432,1714594246859,-500.0,0.00016438,2]
[325220434,1714594246869,-500.0,0.00016447,2]
[325220436,1714594246878,-151.0,0.0001645,2]
[325220438,1714594246887,-151.0,0.0001645,2]
[325220440,1714594246896,-245.69209,0.0001645,2]
[325220442,1714594246905,-245.69209,0.0001645,2]
[325220444,1714594246914,-151.0,0.0001645,2]
[325220446,1714594246923,-151.0,0.0001645,2]
[325220448,1714594246931,-151.0,0.0001645,2]
[325220450,1714594246940,-351.71574474,0.0001645,2]
[325220452,1714594246949,-539.62823894,0.0001645,2]
[325220454,1714594246958,-618.0653687,0.0001645,2]
[325220456,1714594246967,-6039.84301768,0.0001645,2]
[325220458,1714594246976,-500.0,0.00016456,2]
[325220460,1714594246986,-500.0,0.00016465,2]
[325220462,1714594246998,-500.0,0.00016474,2]
[325220464,1714594247007,-500.0,0.00016474,2]
[325220466,1714594247016,-264.120716,0.00016482,2]
[325220468,1714594247025,-264.120716,0.00016482,2]
[325220470,1714594247034,-170.898496,0.00016482,2]
[325220472,1714594247043,-248.008135,0.00016482,2]
[325220474,1714594247053,-248.008135,0.00016482,2]
[325220476,1714594247063,-151.0,0.00016482,2]
[325220478,1714594247072,-500.0,0.00016482,2]
[325220480,1714594247081,-500.0,0.00016482,2]
[325220482,1714594247091,-500.0,0.00016491,2]
[325220484,1714594247100,-500.0,0.00016491,2]
[325220486,1714594247109,-160.0,0.00016491,2]
[325220488,1714594247118,-1224.55602433,0.000165,2]
[325220490,1714594247128,-500.0,0.000165,2]
[325220492,1714594247137,-500.0,0.000165,2]
[325220494,1714594247146,-160.0,0.000165,2]
[325220496,1714594247156,-156.0,0.00016505,2]
[325220498,1714594247165,-1113.13185757,0.00016529,2]
[325220500,1714594247174,-508.93,0.00016544,2]
[325220502,1714594247184,-188.0,0.0001673,2]
[325220504,1714594247193,-150.66768679,0.00016745,2]
[325220506,1714594247202,-251.36,0.00016863,2]
[325220508,1714594247212,-1000.0,0.000169,4]
[325220510,1714594247221,-150.66768679,0.00016965,2]
[325220512,1714594247232,-251.239288,0.00016986,2]
[325220514,1714594247241,-19590.34951232,0.00017,2]
[325220516,1714594247252,-151.0,0.00017,2]
[325220518,1714594247262,-151.0,0.00017,2]
[325220520,1714594247272,-151.0,0.00017,2]
[325220522,1714594247281,-151.0,0.00017,2]
[325220524,1714594247291,-151.0,0.00017,2]
[325220526,1714594247301,-150.66768679,0.00017045,2]
[325220528,1714594247310,-1785.0,0.0001709,2]
[325220530,1714594247320,-610.0,0.0001709,2]
[325220532,1714594247334,-208.0,0.0001709,2]
[325220534,1714594247344,-3133.0,0.0001709,2]
[325220536,1714594247353,-2448.0,0.0001709,2]
[325220538,1714594247363,-1476.0,0.0001709,2]
[325220540,1714594247372,-421.0,0.0001709,2]
[325220542,1714594247382,-1643.0,0.0001709,2]
[325220544,1714594247392,-215.0,0.0001709,2]
[325220546,1714594247401,-444.0,0.0001709,2]
[325220548,1714594247411,-1139.0,0.0001709,2]
[325220550,1714594247421,-167.0,0.00017137,2]
[325220552,1714594247430,-913.5,0.00017225,3]
[325220554,1714594247439,-198.79601,0.00017225,2]
[325220556,1714594247448,-198.79601,0.00017225,2]
[325220558,1714594247458,-151.0,0.00017225,2]
[325220560,1714594247467,-5737.0,0.00017315,2]
[325220562,1714594247477,-5899.0,0.00017315,2]
[325220564,1714594247487,-37744.0,0.00017315,2]
[325220566,1714594247496,-2292.0,0.00017315,2]
[325220567,1714594247507,-1057.0,0.00017315,2]
[325220569,1714594247516,-491.07,0.00017388,2]
[325220571,1714594247526,-154.27123848,0.0001741,2]
[325220573,1714594247536,-172.263242,0.00017426,2]
[325220575,1714594247545,-413.43178,0.00017426,2]
[325220577,1714594247555,-172.263242,0.00017426,2]
[325220579,1714594247564,-188.0,0.0001748,2]
[325220581,1714594247573,-7715.7288946,0.00017498,2]
[325220583,1714594247582,-5657.3453126,0.00017498,2]
[325220585,1714594247592,-3598.9617306,0.00017498,2]
[325220587,1714594247601,-1540.5781486,0.00017498,2]
[325220589,1714594247610,-289.6440812,0.00017498,2]
[325220591,1714594247619,-150.0,0.0001751,2]
[325220593,1714594247628,-150.0,0.0001751,2]
[325220595,1714594247638,-150.0,0.0001751,2]
[325220597,1714594247647,-150.0,0.0001751,2]
[325220599,1714594247656,-150.0,0.0001751,2]
[325220601,1714594247666,-150.0,0.0001751,2]
[325220603,1714594247674,-150.0,0.0001751,2]
[325220605,1714594247683,-150.0,0.0001751,2]
[325220607,1714594247692,-150.0,0.0001751,2]
[325220609,1714594247702,-150.0,0.0001751,2]
[325220611,1714594247712,-150.0,0.0001751,2]
[325220613,1714594247721,-150.0,0.0001751,2]
[325220615,1714594247730,-1395.0,0.0001751,2]
[325220617,1714594247739,-970.0,0.0001751,2]
[325220619,1714594247750,-461.794,0.0001751,2]
[325220621,1714594247759,-2298.0,0.0001751,2]
[325220623,1714594247768,-245.258,0.0001751,2]
[325220625,1714594247777,-1227.0,0.0001751,2]
[325220627,1714594247787,-807.0,0.0001751,2]
[325220629,1714594247796,-437.0,0.0001751,2]
[325220630,1714594247805,-200.0,0.00017591,2]
[325220633,1714594247819,-413.43178,0.00017643,2]
[325220635,1714594247829,-75345.75228324,0.00017666,2]
[325220637,1714594247838,-1113.13185757,0.00017686,2]
[325220639,1714594247848,-172.263242,0.00017716,2]
[325220641,1714594247857,-172.263242,0.00017716,2]
[325220643,1714594247867,-161.55059082,0.00017807,2]
[325220645,1714594247876,-251.239288,0.00017808,2]
[325220646,1714594247886,-150.66768679,0.0001786,2]
[325220648,1714594247895,-413.43178,0.00017861,2]
[325220650,1714594247904,-218.466058,0.0001788,2]
[325220652,1714594247914,-218.466058,0.0001788,2]